fUST/lending_fUST_20250801
["ID","MTS","AMOUNT","RATE_DAILY","PERIOD"]
[376456761,1753985440635,-460.0,0.00019178,2]
[376456763,1753985440644,-460.0,0.00019178,2]
[376456765,1753985440654,-460.0,0.00019178,2]
[376456767,1753985440663,-461.25465039,0.00019178,2]
[376456769,1753985440672,-460.0,0.00019178,2]
[376456771,1753985440682,-460.0,0.00019178,2]
[376456773,1753985440691,-460.0,0.00019178,2]
[376456775,1753985440700,-1312.78,0.00019178,2]
[376456777,1753985440709,-461.46118296,0.00019178,2]
[376456779,1753985440720,-460.0,0.00019178,2]
[376456781,1753985440734,-460.0,0.00019178,2]
[376456783,1753985440743,-460.0,0.00019178,2]
[376456785,1753985440752,-460.0,0.00019178,2]
[376456787,1753985440762,-489.66,0.00019178,2]
[376456789,1753985440771,-460.0,0.00019178,2]
[376456791,1753985440780,-474.37,0.00019178,2]
[376456793,1753985440789,-466.24,0.00019178,2]
[376456795,1753985440799,-460.0,0.00019178,2]
[376456797,1753985440808,-460.0,0.00019178,2]
[376456799,1753985440818,-463.56075331,0.00019178,2]
[376456801,1753985440827,-460.0,0.00019178,2]
[376456803,1753985440836,-460.0,0.00019178,2]
[376456805,1753985440845,-460.0,0.00019178,2]
[376456807,1753985440854,-460.0,0.00019178,2]
[376456809,1753985440863,-845.26,0.00019178,2]
[376456811,1753985440873,-630.17,0.00019178,2]
[376456813,1753985440882,-460.0,0.00019178,2]
[376456815,1753985440892,-460.0,0.00019178,2]
[376456817,1753985440901,-460.0,0.00019178,2]
[376456819,1753985440910,-460.0,0.00019178,2]
[376456821,1753985440920,-460.0,0.00019178,2]
[376456823,1753985440929,-460.0,0.00019178,2]
[376456825,1753985440938,-460.0,0.00019178,2]
[376456827,1753985440947,-460.0,0.00019178,2]
[376456829,1753985440956,-460.0,0.00019178,2]
[376456831,1753985440966,-458.6307424,0.00019178,2]
[376456833,1753985440975,-460.0,0.00019178,2]
[376456835,1753985440984,-460.0,0.00019178,2]
[376456837,1753985440993,-460.0,0.00019178,2]
[376456839,1753985441002,-477.79655677,0.00019178,2]
[376456841,1753985441012,-529.01189253,0.00019178,2]
[376456843,1753985441021,-460.0,0.00019178,2]
[376456845,1753985441030,-461.59118345,0.00019178,2]
[376456847,1753985441039,-460.0,0.00019178,2]
[376456849,1753985441048,-460.0,0.00019178,2]
[376456851,1753985441057,-532.99,0.00019178,2]
[376456853,1753985441066,-460.0,0.00019178,2]
[376456855,1753985441075,-594.40211323,0.00019178,2]
[376456857,1753985441085,-460.0,0.00019178,2]
[376456859,1753985441094,-460.0,0.00019178,2]
[376456861,1753985441103,-460.0,0.00019178,2]
[376456863,1753985441112,-460.0,0.00019178,2]
[376456865,1753985441121,-460.0,0.00019178,2]
[376456867,1753985441132,-460.0,0.00019178,2]
[376456869,1753985441142,-490.53,0.00019178,2]
[376456871,1753985441152,-460.0,0.00019178,2]
[376456873,1753985441162,-460.0,0.00019178,2]
[376456875,1753985441171,-460.0,0.00019178,2]
[376456877,1753985441181,-460.0,0.00019178,2]
[376456879,1753985441190,-460.0,0.00019178,2]
[376456881,1753985441199,-460.0,0.00019178,2]
[376456883,1753985441208,-460.0,0.00019178,2]
[376456885,1753985441217,-460.0,0.00019178,2]
[376456887,1753985441226,-460.0,0.00019178,2]
[376456889,1753985441235,-460.0,0.00019178,2]
[376456891,1753985441245,-460.0,0.00019178,2]
[376456893,1753985441253,-460.0,0.00019178,2]
[376456895,1753985441262,-460.0,0.00019178,2]
[376456897,1753985441271,-460.0,0.00019178,2]
[376456899,1753985441280,-461.78526065,0.00019178,2]
[376456901,1753985441289,-460.0,0.00019178,2]
[376456917,1753985441298,-460.0,0.00019178,2]
[376456920,1753985441438,-500.0,0.00019178,2]
[376456922,1753985441447,-4500.9,0.00019178,2]
[376456924,1753985441456,-500.0,0.00019178,2]
[376456926,1753985441465,-460.0,0.00019178,2]
[376456927,1753985441476,-633.88,0.00019178,2]
[376456930,1753985441485,-460.0,0.00019178,2]
[376456932,1753985441494,-460.0,0.00019178,2]
[376456933,1753985441503,-2316.06,0.00019178,2]
[376456935,1753985441513,-460.0,0.00019178,2]
[376456937,1753985441522,-460.0,0.00019178,2]
[376456939,1753985441532,-460.0,0.00019178,2]
[376456941,1753985441540,-460.0,0.00019178,2]
[376456943,1753985441550,-460.0,0.00019178,2]
[376456945,1753985441559,-460.0,0.00019178,2]
[376456947,1753985441569,-460.0,0.00019178,2]
[376456949,1753985441578,-460.0,0.00019178,2]
[376456951,1753985441588,-460.0,0.00019178,2]
[376456953,1753985441597,-460.0,0.00019178,2]
[376456955,1753985441606,-3474.91,0.00019178,2]
[376456957,1753985441615,-774.49,0.00019178,2]
[376456959,1753985441624,-460.0,0.00019178,2]
[376456961,1753985441633,-460.0,0.00019178,2]
[376456963,1753985441643,-460.0,0.00019178,2]
[376456965,1753985441653,-460.0,0.00019178,2]
[376456967,1753985441663,-460.0,0.00019178,2]
[376456969,1753985441672,-460.0,0.00019178,2]
[376456971,1753985441682,-483.19067633,0.00019178,2]
[376456973,1753985441692,-460.0,0.00019178,2]
[376456975,1753985441701,-407.26264448,0.00019178,2]
[376456977,1753985441710,-590.51,0.00019178,2]
[376456979,1753985441723,-460.0,0.00019178,2]
[376456981,1753985441733,-460.0,0.00019178,2]
[376456983,1753985441742,-460.0,0.00019178,2]
[376456985,1753985441751,-460.0,0.00019178,2]
[376456987,1753985441761,-460.0,0.00019178,2]
[376456989,1753985441772,-460.0,0.00019178,2]
[376456991,1753985441781,-460.0,0.00019178,2]
[376456993,1753985441790,-460.0,0.00019178,2]
[376456995,1753985441802,-974.86,0.00019178,2]
[376456996,1753985441811,-460.0,0.00019178,2]
[376456998,1753985441820,-644.21,0.00019178,2]
[376457000,1753985441829,-460.0,0.00019178,2]
[376457002,1753985441839,-460.0,0.00019178,2]
[376457004,1753985441848,-460.0,0.00019178,2]
[376457006,1753985441857,-460.0,0.00019178,2]
[376457008,1753985441866,-460.0,0.00019178,2]
[376457010,1753985441875,-460.0,0.00019178,2]
[376457012,1753985441884,-460.0,0.00019178,2]
[376457014,1753985441893,-465.09,0.00019178,2]
[376457016,1753985441901,-460.0,0.00019178,2]
[376457018,1753985441910,-460.0,0.00019178,2]
[376457020,1753985441919,-460.0,0.00019178,2]
[376457022,1753985441928,-618.13,0.00019178,2]
[376457024,1753985441937,-460.0,0.00019178,2]
[376457026,1753985441946,-460.0,0.00019178,2]
[376457028,1753985441956,-460.0,0.00019178,2]
[376457030,1753985441965,-460.0,0.00019178,2]
[376457032,1753985441975,-460.0,0.00019178,2]
[376457034,1753985441984,-460.0,0.00019178,2]
[376457036,1753985441993,-460.0,0.00019178,2]
[376457038,1753985442002,-507.28,0.00019178,2]
[376457040,1753985442012,-460.0,0.00019178,2]
[376457042,1753985442021,-460.0,0.00019178,2]
[376457044,1753985442030,-460.0,0.00019178,2]
[376457045,1753985442039,-506.4,0.00019178,2]
[376457047,1753985442048,-460.0,0.00019178,2]
[376457049,1753985442057,-460.0,0.00019178,2]
[376457051,1753985442066,-460.0,0.00019178,2]
[376457053,1753985442075,-460.0,0.00019178,2]
[376457055,1753985442084,-7148.89,0.00019178,2]
[376457057,1753985442093,-460.0,0.00019178,2]
[376457059,1753985442102,-460.0,0.00019178,2]
[376457061,1753985442111,-460.0,0.00019178,2]
[376457063,1753985442119,-460.0,0.00019178,2]
[376457065,1753985442129,-983.95,0.00019178,2]
[376457067,1753985442138,-460.0,0.00019178,2]
[376457069,1753985442147,-460.0,0.00019178,2]
[376457071,1753985442155,-460.0,0.00019178,2]
[376457073,1753985442164,-460.0,0.00019178,2]
[376457075,1753985442174,-1153.21,0.00019178,2]
[376457077,1753985442182,-460.0,0.00019178,2]
[376457078,1753985442191,-460.0,0.00019178,2]
[376457080,1753985442200,-460.0,0.00019178,2]
[376457082,1753985442209,-460.0,0.00019178,2]
[376457084,1753985442218,-460.0,0.00019178,2]
[376457086,1753985442229,-460.0,0.00019178,2]
[376457088,1753985442238,-512.82,0.00019178,2]
[376457090,1753985442247,-975.9,0.00019178,2]
[376457092,1753985442256,-604.21,0.00019178,2]
[376457094,1753985442266,-870.69,0.00019178,2]
[376457096,1753985442275,-460.0,0.00019178,2]
[376457098,1753985442284,-460.0,0.00019178,2]
[376457100,1753985442294,-994.06,0.00019178,2]
[376457102,1753985442314,-561.25,0.00019178,2]
[376457104,1753985442327,-460.0,0.00019178,2]
[376457106,1753985442344,-4501.71,0.00019178,2]
[376457108,1753985442354,-460.0,0.00019178,2]
[376457110,1753985442363,-891.25,0.00019178,2]
[376457112,1753985442372,-460.0,0.00019178,2]
[376457114,1753985442381,-979.8,0.00019178,2]
[376457116,1753985442390,-460.0,0.00019178,2]
[376457118,1753985442399,-460.0,0.00019178,2]
[376457120,1753985442408,-460.0,0.00019178,2]
[376457122,1753985442417,-460.0,0.00019178,2]
[376457124,1753985442427,-798.72,0.00019178,2]
[376457126,1753985442436,-3576.98,0.00019178,2]
[376457128,1753985442446,-742.03,0.00019178,2]
[376457130,1753985442455,-460.0,0.00019178,2]
[376457132,1753985442465,-460.0,0.00019178,2]
[376457134,1753985442475,-1896.23,0.00019178,2]
[376457136,1753985442485,-460.0,0.00019178,2]
[376457138,1753985442494,-2760.03,0.00019178,2]
[376457140,1753985442504,-949.76,0.00019178,2]
[376457142,1753985442513,-460.0,0.00019178,2]
[376457144,1753985442523,-3085.5,0.00019178,2]
[376457146,1753985442532,-460.0,0.00019178,2]
[376457148,1753985442541,-460.0,0.00019178,2]
[376457150,1753985442551,-460.0,0.00019178,2]
[376457152,1753985442562,-460.0,0.00019178,2]
[376457154,1753985442571,-460.0,0.00019178,2]
[376457156,1753985442580,-460.0,0.00019178,2]
[376457158,1753985442589,-460.0,0.00019178,2]
[376457160,1753985442598,-460.0,0.00019178,2]
[376457162,1753985442608,-460.0,0.00019178,2]
[376457164,1753985442617,-460.0,0.00019178,2]
[376457166,1753985442626,-4591.87,0.00019178,2]
[376457168,1753985442635,-1236.47,0.00019178,2]
[376457170,1753985442645,-863.08,0.00019178,2]
[376457172,1753985442654,-460.0,0.00019178,2]
[376457174,1753985442663,-460.0,0.00019178,2]
[376457176,1753985442674,-460.0,0.00019178,2]
[376457178,1753985442683,-460.0,0.00019178,2]
[376457180,1753985442693,-460.0,0.00019178,2]
[376457182,1753985442702,-2496.92,0.00019178,2]
[376457184,1753985442712,-460.0,0.00019178,2]
[376457186,1753985442724,-460.0,0.00019178,2]
[376457188,1753985442737,-432.30374484,0.00019178,2]
[376457190,1753985442747,-460.0,0.00019178,2]
[376457192,1753985442756,-3604.35,0.00019178,2]
[376457194,1753985442767,-460.0,0.00019178,2]
[376457196,1753985442776,-460.0,0.00019178,2]
[376457198,1753985442786,-460.0,0.00019178,2]
[376457200,1753985442795,-566.74,0.00019178,2]
[376457202,1753985442805,-618.07,0.00019178,2]
[376457204,1753985442815,-460.0,0.00019178,2]
[376457206,1753985442824,-460.0,0.00019178,2]
[376457208,1753985442833,-460.0,0.00019178,2]
[376457210,1753985442842,-650.47,0.00019178,2]
[376457212,1753985442851,-460.0,0.00019178,2]
[376457214,1753985442861,-460.0,0.00019178,2]
[376457216,1753985442871,-460.47707093,0.00019178,2]
[376457218,1753985442880,-460.0,0.00019178,2]
[376457220,1753985442890,-460.0,0.00019178,2]
[376457222,1753985442899,-460.0,0.00019178,2]
[376457225,1753985442908,-3227.93,0.00019178,2]
[376457227,1753985442917,-460.0,0.00019178,2]
[376457229,1753985442927,-460.0,0.00019178,2]
[376457231,1753985442936,-460.0,0.00019178,2]
[376457233,1753985442945,-460.0,0.00019178,2]
[376457235,1753985442954,-460.0,0.00019178,2]
[376457237,1753985442963,-460.0,0.00019178,2]
[376457239,1753985442972,-460.0,0.00019178,2]
[376457241,1753985442981,-460.0,0.00019178,2]
[376457243,1753985442990,-460.0,0.00019178,2]
[376457245,1753985442999,-2121.81,0.00019178,2]
[376457247,1753985443009,-1121.81,0.00019178,2]
[376457249,1753985443019,-957.73,0.00019178,2]
[376457251,1753985443028,-799.02,0.00019178,2]
[376457252,1753985443037,-460.0,0.00019178,2]
[376457253,1753985443047,-461.03232639,0.00019178,2]
[376457254,1753985443056,-3285.28,0.00019178,2]
[376457255,1753985443065,-460.0,0.00019178,2]
[376457256,1753985443074,-460.0,0.00019178,2]
[376457257,1753985443084,-4288.4,0.00019178,2]
[376457258,1753985443092,-460.0,0.00019178,2]
[376457259,1753985443101,-460.0,0.00019178,2]
[376457260,1753985443110,-547.74,0.00019178,2]
[376457261,1753985443119,-290.76614728,0.00019178,2]
[376457262,1753985443128,-460.0,0.00019178,2]
[376457263,1753985443137,-990.33,0.00019178,2]
[376457264,1753985443145,-460.0,0.00019178,2]
[376457265,1753985443155,-722.51,0.00019178,2]
[376457266,1753985443163,-460.0,0.00019178,2]
[376457267,1753985443172,-460.0,0.00019178,2]
[376457268,1753985443181,-460.0,0.00019178,2]
[376457270,1753985443190,-460.0,0.00019178,2]
[376457272,1753985443199,-460.0,0.00019178,2]
[376457274,1753985443208,-460.0,0.00019178,2]
[376457276,1753985443217,-460.0,0.00019178,2]
[376457278,1753985443231,-460.0,0.00019178,2]
[376457280,1753985443241,-1021.97,0.00019178,2]
[376457282,1753985443250,-460.0,0.00019178,2]
[376457284,1753985443260,-460.0,0.00019178,2]
[376457286,1753985443269,-4442.23,0.00019178,2]
[376457288,1753985443278,-460.0,0.00019178,2]
[376457290,1753985443287,-458.49847527,0.00019178,2]
[376457292,1753985443296,-1182.34,0.00019178,2]
[376457294,1753985443305,-460.0,0.00019178,2]
[376457296,1753985443315,-460.0,0.00019178,2]
[376457298,1753985443324,-460.0,0.00019178,2]
[376457300,1753985443333,-460.0,0.00019178,2]
[376457302,1753985443342,-460.0,0.00019178,2]
[376457304,1753985443351,-1010.85,0.00019178,2]
[376457306,1753985443360,-460.0,0.00019178,2]
[376457308,1753985443369,-1301.73,0.00019178,2]
[376457310,1753985443378,-460.0,0.00019178,2]
[376457312,1753985443387,-460.0,0.00019178,2]
[376457314,1753985443396,-450.88355928,0.00019178,2]
[376457316,1753985443405,-460.0,0.00019178,2]
[376457318,1753985443415,-1069.76,0.00019178,2]
[376457320,1753985443425,-460.0,0.00019178,2]
[376457322,1753985443434,-460.0,0.00019178,2]
[376457324,1753985443444,-460.0,0.00019178,2]
[376457326,1753985443454,-460.0,0.00019178,2]
[376457328,1753985443464,-460.0,0.00019178,2]
[376457330,1753985443475,-460.0,0.00019178,2]
[376457332,1753985443485,-460.0,0.00019178,2]
[376457334,1753985443494,-9723.3,0.00019178,2]
[376457336,1753985443504,-460.0,0.00019178,2]
[376457338,1753985443513,-460.0,0.00019178,2]
[376457340,1753985443523,-460.0,0.00019178,2]
[376457342,1753985443532,-460.0,0.00019178,2]
[376457344,1753985443541,-460.0,0.00019178,2]
[376457346,1753985443551,-460.0,0.00019178,2]
[376457348,1753985443561,-460.0,0.00019178,2]
[376457350,1753985443570,-460.0,0.00019178,2]
[376457352,1753985443579,-460.0,0.00019178,2]
[376457354,1753985443589,-460.0,0.00019178,2]
[376457356,1753985443598,-1060.5,0.00019178,2]
[376457358,1753985443608,-525.52,0.00019178,2]
[376457360,1753985443617,-460.0,0.00019178,2]
[376457362,1753985443626,-9292.6,0.00019178,2]
[376457364,1753985443634,-460.0,0.00019178,2]
[376457366,1753985443643,-460.0,0.00019178,2]
[376457368,1753985443661,-646.21,0.00019178,2]
[376457371,1753985443672,-460.0,0.00019178,2]
[376457373,1753985443682,-460.0,0.00019178,2]
[376457375,1753985443691,-1738.78,0.00019178,2]
[376457377,1753985443701,-460.0,0.00019178,2]
[376457379,1753985443711,-460.0,0.00019178,2]
[376457381,1753985443721,-1050.61096618,0.00019178,2]
[376457406,1753985443937,-436.73903382,0.00019178,2]
[376457408,1753985443947,-460.0,0.00019178,2]
[376457410,1753985443958,-1135.3,0.00019178,2]
[376457412,1753985443977,-460.0,0.00019178,2]
[376457414,1753985443986,-460.0,0.00019178,2]
[376457416,1753985443995,-460.0,0.00019178,2]
[376457418,1753985444005,-460.0,0.00019178,2]
[376457420,1753985444014,-460.0,0.00019178,2]
[376457422,1753985444023,-460.0,0.00019178,2]
[376457424,1753985444032,-460.0,0.00019178,2]
[376457426,1753985444041,-460.0,0.00019178,2]
[376457428,1753985444050,-460.0,0.00019178,2]
[376457430,1753985444059,-460.0,0.00019178,2]
[376457432,1753985444069,-460.0,0.00019178,2]
[376457435,1753985444084,-460.0,0.00019178,2]
[376457437,1753985444093,-523.45010203,0.00019178,2]
[376457439,1753985444104,-721.64989797,0.00019178,2]
[376457441,1753985444114,-191.13927423,0.00019178,2]
[376457443,1753985444125,-303.20072577,0.00019178,2]
[376457445,1753985444134,-460.0,0.00019178,2]
[376457447,1753985444144,-460.0,0.00019178,2]
[376457449,1753985444153,-460.0,0.00019178,2]
[376457451,1753985444162,-144.32217423,0.00019178,2]
[376457499,1753985444607,-318.44570891,0.00019178,2]
[376457501,1753985444616,-970.0,0.00019178,2]
[376457503,1753985444627,-3137.46135717,0.00019178,2]
[376457506,1753985444638,-535.22528724,0.00019178,2]
[376457508,1753985444654,-1327.31335559,0.00019178,2]
[376457510,1753985444664,-4545.21610492,0.00019178,2]
[376457512,1753985444673,-500.0,0.00019178,2]
[376457514,1753985444683,-289.067244,0.00019178,2]
[376457516,1753985444692,-666.0,0.00019178,2]
[376457518,1753985444702,-661.41998107,0.00019284,2]
[376457520,1753985444711,-2172.0,0.000193,2]
[376457522,1753985444722,-168.0,0.00019327,2]
[376457524,1753985444736,-218.45,0.00019328,2]
[376457526,1753985444745,-635.0,0.00019338,2]
[376457528,1753985444754,-977.334,0.00019338,2]
[376457530,1753985444763,-460.682337,0.00019353,2]
[376457532,1753985444773,-841.37753757,0.00019353,2]
[376457534,1753985444782,-231.48161788,0.00019353,2]
[376457536,1753985444791,-160.0,0.00019355,2]
[376457538,1753985444803,-526.848153,0.00019355,2]
[376457540,1753985444812,-160.0,0.00019355,2]
[376457542,1753985444822,-160.0,0.00019355,2]
[376457544,1753985444831,-160.0,0.00019355,2]
[376457546,1753985444840,-12642.0599901,0.00019355,2]
[376457548,1753985444850,-160.0,0.00019355,2]
[376457550,1753985444859,-312.16666667,0.00019355,2]
[376457552,1753985444868,-216.18812866,0.00019355,2]
[376457554,1753985444878,-160.0,0.00019355,2]
[376457556,1753985444887,-214.99831783,0.00019355,2]
[376457558,1753985444896,-179.89206476,0.00019365,2]
[376457560,1753985444905,-224.278322,0.00019399,2]
[376457562,1753985444915,-578.3876535,0.000194,2]
[376457564,1753985444924,-350.0659025,0.00019452,2]
[376457566,1753985444933,-460.0,0.00019452,2]
[376457568,1753985444942,-460.0,0.00019452,2]
[376457570,1753985444951,-631.59,0.00019452,2]
[376457572,1753985444960,-644.24,0.00019452,2]
[376457574,1753985444970,-460.0,0.00019452,2]
[376457576,1753985444984,-584.91286071,0.00019452,2]
[376457578,1753985444993,-315.53544578,0.00019452,2]
[376457580,1753985445003,-232.66315777,0.00019452,2]
[376457582,1753985445012,-587.01,0.00019452,2]
[376457585,1753985445023,-460.0,0.00019452,2]
[376457587,1753985445033,-464.98788061,0.00019452,2]
[376457588,1753985445042,-460.0,0.00019452,2]
[376457591,1753985445053,-460.0,0.00019452,2]
[376457593,1753985445062,-460.0,0.00019452,2]
[376457595,1753985445071,-460.0,0.00019452,2]
[376457597,1753985445080,-460.0,0.00019452,2]
[376457599,1753985445089,-460.0,0.00019452,2]
[376457601,1753985445098,-460.0,0.00019452,2]
[376457603,1753985445108,-770.37,0.00019452,2]
[376457605,1753985445117,-460.0,0.00019452,2]
[376457607,1753985445127,-460.0,0.00019452,2]
[376457609,1753985445136,-460.0,0.00019452,2]
[376457611,1753985445146,-460.0,0.00019452,2]
[376457613,1753985445155,-500.0,0.00019452,2]
[376457615,1753985445164,-460.0,0.00019452,2]
[376457617,1753985445174,-460.0,0.00019452,2]
[376457619,1753985445184,-460.0,0.00019452,2]
[376457621,1753985445192,-460.0,0.00019452,2]
[376457623,1753985445201,-460.0,0.00019452,2]
[376457625,1753985445211,-460.0,0.00019452,2]
[376457627,1753985445220,-460.0,0.00019452,2]
[376457628,1753985445230,-1354.87,0.00019452,2]
[376457631,1753985445240,-460.0,0.00019452,2]
[376457633,1753985445249,-1087.34,0.00019452,2]
[376457635,1753985445259,-460.0,0.00019452,2]
[376457637,1753985445268,-460.0,0.00019452,2]
[376457639,1753985445277,-460.0,0.00019452,2]
[376457641,1753985445287,-460.0,0.00019452,2]
[376457643,1753985445297,-740.37,0.00019452,2]
[376457645,1753985445306,-460.0,0.00019452,2]
[376457647,1753985445315,-460.0,0.00019452,2]
[376457649,1753985445325,-918.12,0.00019452,2]
[376457650,1753985445334,-390.07918665,0.00019452,2]
[376457653,1753985445343,-460.0,0.00019452,2]
[376457655,1753985445354,-460.0,0.00019452,2]
[376457657,1753985445364,-646.57,0.00019452,2]
[376457659,1753985445373,-466.82,0.00019452,2]
[376457661,1753985445383,-460.0,0.00019452,2]
[376457663,1753985445392,-460.0,0.00019452,2]
[376457665,1753985445401,-460.0,0.00019452,2]
[376457667,1753985445411,-460.0,0.00019452,2]
[376457669,1753985445420,-300.82814962,0.00019452,2]
[376457671,1753985445429,-460.0,0.00019452,2]
[376457673,1753985445439,-460.0,0.00019452,2]
[376457675,1753985445448,-460.0,0.00019452,2]
[376457677,1753985445457,-1312.78,0.00019452,2]
[376457679,1753985445466,-460.0,0.00019452,2]
[376457681,1753985445477,-460.0,0.00019452,2]
[376457683,1753985445487,-460.0,0.00019452,2]
[376457685,1753985445497,-489.66,0.00019452,2]
[376457687,1753985445506,-460.0,0.00019452,2]
[376457688,1753985445516,-474.37,0.00019452,2]
[376457689,1753985445525,-466.24,0.00019452,2]
[376457690,1753985445535,-460.0,0.00019452,2]
[376457691,1753985445544,-460.0,0.00019452,2]
[376457692,1753985445553,-460.0,0.00019452,2]
[376457693,1753985445565,-845.26,0.00019452,2]
[376457694,1753985445574,-630.17,0.00019452,2]
[376457695,1753985445584,-460.0,0.00019452,2]
[376457696,1753985445593,-460.0,0.00019452,2]
[376457697,1753985445603,-532.99,0.00019452,2]
[376457698,1753985445612,-460.0,0.00019452,2]
[376457699,1753985445621,-210.50167997,0.00019452,2]
[376457700,1753985445631,-460.0,0.00019452,2]
[376457701,1753985445640,-490.53,0.00019452,2]
[376457702,1753985445649,-460.0,0.00019452,2]
[376457704,1753985445659,-460.0,0.00019452,2]
[376457706,1753985445668,-460.0,0.00019452,2]
[376457708,1753985445677,-460.0,0.00019452,2]
[376457710,1753985445687,-460.0,0.00019452,2]
[376457712,1753985445696,-460.0,0.00019452,2]
[376457714,1753985445706,-460.0,0.00019452,2]
[376457716,1753985445715,-460.0,0.00019452,2]
[376457718,1753985445729,-472.12077666,0.00019452,2]
[376457720,1753985445739,-460.0,0.00019452,2]
[376457722,1753985445748,-4500.9,0.00019452,2]
[376457724,1753985445757,-460.0,0.00019452,2]
[376457727,1753985445767,-633.88,0.00019452,2]
[376457728,1753985445777,-460.0,0.00019452,2]
[376457731,1753985445786,-2316.06,0.00019452,2]
[376457733,1753985445796,-460.0,0.00019452,2]
[376457735,1753985445807,-460.0,0.00019452,2]
[376457737,1753985445817,-460.0,0.00019452,2]
[376457739,1753985445826,-562.58147982,0.00019452,2]
[376457740,1753985445835,-151.0,0.00019452,2]
[376457742,1753985445844,-460.0,0.00019452,2]
[376457745,1753985445854,-3474.91,0.00019452,2]
[376457747,1753985445864,-774.49,0.00019452,2]
[376457748,1753985445873,-460.0,0.00019452,2]
[376457751,1753985445882,-460.0,0.00019452,2]
[376457753,1753985445893,-590.51,0.00019452,2]
[376457755,1753985445903,-460.0,0.00019452,2]
[376457757,1753985445912,-225.01091811,0.00019452,2]
[376457759,1753985445921,-460.0,0.00019452,2]
[376457761,1753985445931,-460.0,0.00019452,2]
[376457763,1753985445939,-460.0,0.00019452,2]
[376457765,1753985445948,-974.86,0.00019452,2]
[376457767,1753985445957,-644.21,0.00019452,2]
[376457769,1753985445967,-460.0,0.00019452,2]
[376457771,1753985445979,-460.0,0.00019452,2]
[376457773,1753985445988,-465.09,0.00019452,2]
[376457775,1753985445998,-460.0,0.00019452,2]
[376457777,1753985446007,-460.0,0.00019452,2]
[376457779,1753985446016,-618.13,0.00019452,2]
[376457781,1753985446025,-460.0,0.00019452,2]
[376457783,1753985446034,-460.0,0.00019452,2]
[376457785,1753985446043,-273.91261486,0.00019452,2]
[376457786,1753985446053,-460.0,0.00019452,2]
[376457788,1753985446062,-507.28,0.00019452,2]
[376457789,1753985446071,-460.0,0.00019452,2]
[376457790,1753985446080,-460.0,0.00019452,2]
[376457791,1753985446090,-460.0,0.00019452,2]
[376457792,1753985446099,-7148.89,0.00019452,2]
[376457793,1753985446109,-460.0,0.00019452,2]
[376457795,1753985446118,-983.95,0.00019452,2]
[376457797,1753985446127,-460.0,0.00019452,2]
[376457799,1753985446137,-460.0,0.00019452,2]
[376457801,1753985446146,-460.0,0.00019452,2]
[376457803,1753985446155,-1153.21,0.00019452,2]
[376457805,1753985446165,-460.0,0.00019452,2]
[376457807,1753985446174,-460.0,0.00019452,2]